bitfinex-derivatives/quotes_BTCF0:USTF0_20240923
["timestamp","ask_amount","ask_price","bid_price","bid_amount"]
[1727107985756,0.30561881,63460.0,63458.0,0.078788]
[1727107986757,0.126771,63472.0,63459.0,0.3608]
[1727107986949,0.3608,63473.0,63468.0,0.29]
[1727107987153,0.31350833,63473.0,63468.0,0.29]
[1727107987450,0.3608,63479.0,63474.0,0.078767]
[1727107987759,0.3608,63479.0,63460.0,0.0943]
[1727107987760,0.078768,63474.0,63466.0,0.078777]
[1727107988050,0.078768,63474.0,63462.0,0.29]
[1727107988051,0.3608,63470.0,63462.0,0.078782]
[1727107988253,0.3608,63470.0,63453.0,0.0037]
[1727107988254,0.3608,63464.0,63453.0,0.0037]
[1727107988556,0.3608,63464.0,63448.0,0.048]
[1727107988856,0.3608,63458.0,63444.0,0.0037]
[1727107989055,0.3608,63458.0,63455.0,0.29]
[1727107989356,0.3608,63468.0,63455.0,0.29]
[1727107989551,0.3608,63468.0,63461.0,0.078784]
[1727107989552,0.078777,63467.0,63461.0,0.078784]
[1727107989754,0.3608,63468.0,63455.0,0.29]
[1727107989755,0.439576,63468.0,63462.0,0.078783]
[1727107990656,0.078777,63467.0,63457.0,0.078789]
[1727107990846,0.078777,63467.0,63455.0,0.29]
[1727107990847,0.3608,63468.0,63459.0,0.078786]
[1727107991049,0.3608,63461.0,63455.0,0.078791]
[1727107991249,0.3608,63461.0,63454.0,0.3608]
[1727107991855,0.3608,63461.0,63460.0,0.078785]
[1727107992057,0.3608,63461.0,63460.0,0.368785]
[1727107992248,0.001,63464.0,63463.0,0.078782]
[1727107992657,0.3608,63468.0,63467.0,0.078777]
[1727107992862,0.4101,63481.0,63475.0,0.078766]
[1727107993049,0.4101,63481.0,63460.0,0.3608]
[1727107993050,0.3608,63481.0,63473.0,0.29]
[1727107993366,0.00236417,63486.0,63473.0,0.29]
[1727107993660,0.00236417,63486.0,63485.0,0.078754]
[1727107993854,0.3608,63489.0,63488.0,0.078751]
[1727107994159,0.3608,63489.0,63484.0,0.078755]
[1727107994468,0.078751,63488.0,63484.0,0.074755]
[1727107994763,0.3608,63502.0,63485.0,0.6508]
[1727107994949,0.3608,63502.0,63496.0,0.078741]
[1727107995760,0.3608,63502.0,63489.0,0.29]
[1727107995761,0.439534,63502.0,63497.0,0.078739]
[1727107995955,0.3608,63510.0,63500.0,0.29]
[1727107996153,0.078725,63509.0,63501.0,0.078733]
[1727107996353,0.3608,63510.0,63505.0,0.078729]
[1727107996760,0.3608,63510.0,63506.0,0.078728]
[1727107997858,0.3608,63510.0,63504.0,0.07873]
[1727107998049,0.078728,63506.0,63498.0,0.3608]
[1727107998250,0.3608,63510.0,63503.0,0.078732]
[1727107998550,0.3648,63510.0,63506.0,0.001]
[1727107998749,0.078727,63507.0,63506.0,0.001]
[1727107999054,0.3648,63510.0,63506.0,0.001]
[1727108000049,0.3648,63510.0,63509.0,0.078725]
[1727108000254,0.3648,63510.0,63506.0,0.001]
[1727108000453,0.3648,63510.0,63503.0,0.078731]
[1727108000454,0.439524,63510.0,63503.0,0.083731]
[1727108001255,0.439524,63510.0,63499.0,0.29]
[1727108001256,0.439524,63510.0,63504.0,0.078731]
[1727108001453,0.447524,63510.0,63509.0,0.001]
[1727108002059,0.078727,63507.0,63503.0,0.078731]
[1727108002260,0.439531,63504.0,63503.0,0.001]
[1727108002762,0.911931,63504.0,63503.0,0.001]
[1727108003259,0.3608,63504.0,63503.0,0.001]
[1727108003466,0.3608,63504.0,63503.0,0.079732]
[1727108003851,0.3608,63504.0,63503.0,0.078732]
[1727108004855,0.3688,63504.0,63503.0,0.1262577]
[1727108005261,0.3688,63504.0,63503.0,0.079732]
[1727108006653,0.3688,63504.0,63503.0,0.269732]
[1727108007155,0.007,63504.0,63503.0,0.269732]
[1727108007361,0.3608,63516.0,63503.0,0.25326421]
[1727108007564,0.3608,63516.0,63515.0,0.268717]
[1727108007971,0.3608,63526.0,63515.0,0.19]
[1727108008263,0.3608,63526.0,63513.0,0.04682611]
[1727108008264,0.3608,63526.0,63519.0,0.268711]
[1727108008468,0.3608,63520.0,63519.0,0.268711]
[1727108010071,0.3608,63529.0,63519.0,0.5508]
[1727108010368,0.3608,63529.0,63525.0,0.19]
[1727108010555,0.3608,63529.0,63525.0,0.268704]
[1727108010753,0.3608,63529.0,63525.0,0.19]
[1727108010967,0.36192001,63538.0,63525.0,0.19]
[1727108011156,0.3608,63538.0,63533.0,0.19]
[1727108011667,0.3608,63538.0,63533.0,0.268695]
[1727108011853,0.003,63529.0,63528.0,0.19]
[1727108012054,0.003,63529.0,63528.0,0.268701]
[1727108012259,0.003,63529.0,63525.0,0.001]
[1727108012454,0.078703,63526.0,63525.0,0.001]
[1727108012668,0.439503,63526.0,63522.0,0.078707]
[1727108012871,0.439503,63526.0,63523.0,0.078707]
[1727108013259,0.3608,63526.0,63518.0,0.19]
[1727108013456,0.3608,63526.0,63525.0,0.078705]
[1727108013773,0.3608,63532.0,63531.0,0.078697]
[1727108014759,0.3608,63532.0,63531.0,0.069707]
[1727108015058,0.078687,63540.0,63528.0,0.5508]
[1727108015256,0.078687,63540.0,63537.0,0.19]
[1727108015462,0.439487,63540.0,63537.0,0.268689]
[1727108015858,0.439487,63540.0,63538.0,0.078689]
[1727108016561,0.449487,63540.0,63538.0,0.078689]
[1727108017270,0.3708,63540.0,63539.0,0.078687]
[1727108018468,0.3708,63540.0,63538.0,0.001]
[1727108018664,0.550847,63539.0,63528.0,0.3608]
[1727108018863,0.078687,63539.0,63528.0,0.5508]
[1727108019070,0.3718,63540.0,63539.0,0.079687]
[1727108019264,0.01,63540.0,63539.0,0.079687]
[1727108019463,0.3608,63546.0,63545.0,0.15736]
[1727108019776,0.3608,63546.0,63545.0,0.26868]
[1727108020860,0.078684,63543.0,63541.0,0.078684]
[1727108021065,0.3608,63546.0,63530.0,0.06832529]
[1727108021066,0.078684,63542.0,63530.0,0.00236108]
[1727108021266,0.3608,63540.0,63539.0,0.078687]
[1727108021667,0.3608,63540.0,63538.0,0.078687]
[1727108021866,0.3608,63540.0,63531.0,0.2379]
[1727108021867,0.001,63546.0,63539.0,0.3608]
[1727108022072,0.001,63546.0,63545.0,0.62948]
[1727108022263,0.3608,63557.0,63545.0,0.5508]
[1727108022576,0.3608,63557.0,63555.0,0.19]
[1727108023072,0.439466,63557.0,63555.0,0.19]
[1727108024076,0.3608,63557.0,63555.0,0.19]
[1727108024772,0.3618,63557.0,63555.0,0.191]
[1727108024975,0.3618,63557.0,63556.0,0.078666]
[1727108026171,0.3608,63557.0,63556.0,0.079666]
[1727108027264,0.3608,63563.0,63556.0,0.001]
[1727108027481,0.3608,63563.0,63562.0,0.268659]
[1727108027879,0.3608,63570.0,63568.0,0.078651]
[1727108028175,0.3608,63577.0,63568.0,0.19]
[1727108028364,0.3608,63577.0,63576.0,0.268642]
[1727108028970,0.0482,63588.0,63581.0,0.078635]
[1727108029179,0.3608,63584.0,63581.0,0.078635]
[1727108029687,0.3608,63584.0,63583.0,0.19]
[1727108029981,0.3608,63584.0,63583.0,0.268633]
[1727108030671,0.3608,63584.0,63578.0,0.19]
[1727108030978,0.3618,63584.0,63581.0,0.001]
[1727108031370,0.078633,63583.0,63581.0,0.001]
[1727108031778,0.3618,63584.0,63581.0,0.001]
[1727108032278,0.3618,63584.0,63582.0,0.078634]
[1727108032279,0.3608,63584.0,63582.0,0.078634]
[1727108032480,0.3608,63584.0,63579.0,0.19]
[1727108032481,0.3608,63593.0,63590.0,0.078624]
[1727108032681,0.3608,63593.0,63592.0,0.19]
[1727108032876,0.3608,63593.0,63583.0,0.3608]
[1727108033073,0.3608,63593.0,63584.0,0.078631]
[1727108033283,0.078626,63589.0,63583.0,0.3608]
[1727108033571,0.078627,63588.0,63583.0,0.3608]
[1727108033766,0.078634,63582.0,63578.0,0.001]
[1727108033972,0.3608,63580.0,63572.0,0.19]
[1727108034483,0.3608,63580.0,63575.0,0.078642]
[1727108035283,0.3608,63580.0,63576.0,0.078641]
[1727108035475,0.3608,63580.0,63577.0,0.07864]
[1727108035780,0.001,63580.0,63579.0,0.078638]
[1727108037486,0.3608,63587.0,63576.0,0.19]
[1727108037487,0.3608,63587.0,63580.0,0.078636]
[1727108037677,0.3608,63587.0,63583.0,0.19]
[1727108039075,0.440428,63587.0,63583.0,0.191]
[1727108039288,0.078632,63584.0,63583.0,0.001]
[1727108039494,0.078632,63584.0,63561.0,0.05102611]
[1727108039674,0.078632,63584.0,63548.0,0.19]
[1727108039675,0.3608,63562.0,63554.0,0.078669]
[1727108039875,0.3608,63562.0,63553.0,0.19]
[1727108039876,0.3608,63556.0,63553.0,0.19]
[1727108040681,0.078663,63559.0,63556.0,0.078666]
[1727108041087,0.3608,63562.0,63558.0,0.19]
[1727108041572,0.3608,63565.0,63564.0,0.078656]
[1727108041775,0.3608,63565.0,63564.0,0.268656]
[1727108042587,0.3608,63565.0,63564.0,0.19]
[1727108042885,0.3608,63565.0,63559.0,0.318262]
[1727108043191,0.3608,63565.0,63558.0,0.3608]
[1727108043192,0.07866,63562.0,63558.0,0.3608]
[1727108043686,0.08466,63562.0,63559.0,0.19]
[1727108043890,0.006,63562.0,63559.0,0.268661]
[1727108044082,0.006,63562.0,63561.0,0.07866]
[1727108044591,0.3608,63565.0,63564.0,0.078656]
[1727108044891,0.3608,63565.0,63564.0,0.268656]
[1727108045271,0.3608,63565.0,63562.0,0.04682611]
[1727108045476,0.439456,63565.0,63561.0,0.04782611]
[1727108045678,0.439456,63565.0,63561.0,0.07966]
[1727108046084,0.078659,63562.0,63561.0,0.001]
[1727108046887,0.078668,63555.0,63554.0,0.04682611]
[1727108047291,0.078669,63554.0,63553.0,0.04682611]
[1727108047476,0.3608,63554.0,63546.0,0.04769593]
[1727108047682,0.3608,63554.0,63542.0,0.078683]
[1727108047683,0.078679,63546.0,63542.0,0.078683]
[1727108047889,0.07868,63545.0,63542.0,0.078683]
[1727108048087,0.078685,63541.0,63540.0,0.00236072]
[1727108048298,0.439485,63541.0,63540.0,0.00236072]
[1727108048476,0.3608,63541.0,63540.0,0.27104672]
[1727108048682,0.3608,63541.0,63540.0,0.00236072]
[1727108048887,0.439485,63541.0,63540.0,0.00236072]
[1727108049392,0.439485,63541.0,63529.0,0.26750609]
[1727108049393,0.078695,63533.0,63531.0,0.078697]
[1727108049578,0.3056795,63532.0,63531.0,0.078697]
[1727108049778,0.3056795,63532.0,63529.0,0.25226421]
[1727108049779,0.078691,63536.0,63529.0,0.25226421]
[1727108049975,0.439485,63541.0,63535.0,0.19]
[1727108050183,0.3708,63541.0,63535.0,0.19]
[1727108050387,0.078693,63535.0,63529.0,0.25226421]
[1727108050887,0.3708,63541.0,63529.0,0.25226421]
[1727108051086,0.001,63536.0,63531.0,0.078696]
[1727108051289,0.078694,63534.0,63531.0,0.078696]
[1727108051787,0.078696,63532.0,63531.0,0.078697]
[1727108052105,0.3608,63535.0,63532.0,0.078696]
[1727108052282,0.3608,63535.0,63533.0,0.078695]
[1727108052583,0.3608,63535.0,63529.0,0.269699]
[1727108052790,0.078696,63533.0,63529.0,0.191]
[1727108053293,0.3608,63535.0,63533.0,0.078695]
[1727108053698,0.3608,63535.0,63534.0,0.268694]
[1727108054582,0.3688,63535.0,63534.0,0.268694]
[1727108055179,0.3608,63535.0,63530.0,0.078698]
[1727108055491,0.3688,63535.0,63534.0,0.001]
[1727108055703,0.3688,63535.0,63519.0,0.61386421]
[1727108055992,0.3688,63535.0,63527.0,0.078702]
[1727108055993,0.3608,63528.0,63527.0,0.078702]
[1727108056176,0.3688,63535.0,63534.0,0.078694]
[1727108057290,0.3688,63535.0,63522.0,0.19]
[1727108057500,0.3608,63529.0,63528.0,0.078701]
[1727108059993,0.3708,63529.0,63528.0,0.079701]
[1727108061287,0.3708,63529.0,63528.0,0.269701]
[1727108061592,0.01,63529.0,63528.0,0.348402]
[1727108061783,0.01,63529.0,63528.0,0.269701]
[1727108063600,0.3608,63535.0,63534.0,0.078694]
[1727108063987,0.3608,63545.0,63544.0,0.078681]
[1727108064191,0.440473,63551.0,63543.0,0.19]
[1727108064394,0.439473,63551.0,63548.0,0.078675]
[1727108064591,0.439473,63551.0,63543.0,0.19]
[1727108064592,0.078677,63548.0,63543.0,0.19]
[1727108064897,0.440473,63551.0,63548.0,0.078675]
[1727108065084,0.078674,63550.0,63548.0,0.078675]
[1727108065290,0.3608,63551.0,63550.0,0.078674]
[1727108067296,0.47208,63550.0,63538.0,0.078688]
[1727108067602,0.3608,63539.0,63538.0,0.078688]
[1727108067894,0.3608,63539.0,63537.0,0.00236074]
[1727108067895,0.078689,63538.0,63537.0,0.00236074]
[1727108069290,0.3708,63539.0,63538.0,0.078689]
[1727108070199,0.01,63539.0,63538.0,0.078689]
[1727108070504,0.088687,63539.0,63538.0,0.078689]
[1727108070707,0.01,63539.0,63538.0,0.078689]
[1727108070903,0.3608,63542.0,63541.0,0.078685]
[1727108071594,0.3608,63551.0,63546.0,0.078678]
[1727108071800,0.3608,63551.0,63547.0,0.078677]
[1727108071801,0.078675,63549.0,63547.0,0.078677]
[1727108071986,0.078676,63548.0,63547.0,0.078677]
[1727108072189,0.3608,63551.0,63544.0,0.078681]
[1727108072404,0.078679,63547.0,63546.0,0.078679]
[1727108074287,0.078679,63547.0,63546.0,0.079679]
[1727108074288,0.089679,63547.0,63546.0,0.079679]
[1727108074489,0.089679,63547.0,63546.0,0.001]
[1727108074700,0.529157,63547.0,63546.0,0.001]
[1727108074892,0.450478,63547.0,63546.0,0.001]
[1727108075091,0.450478,63547.0,63546.0,0.079679]
[1727108075092,0.3718,63547.0,63546.0,0.079679]
[1727108076597,0.3718,63547.0,63546.0,0.14194321]
[1727108076904,0.011,63547.0,63546.0,0.38378325]
[1727108077095,0.011,63547.0,63546.0,0.47848325]
[1727108077417,0.011,63547.0,63546.0,0.40097716]
[1727108077995,0.00236124,63558.0,63546.0,1.75517816]
[1727108078200,0.00236124,63558.0,63557.0,0.33144059]
[1727108078599,0.3618,63567.0,63565.0,0.078655]
[1727108078600,0.3608,63566.0,63565.0,0.078655]
[1727108078797,0.439454,63566.0,63560.0,0.06272513]
[1727108079008,0.439454,63566.0,63559.0,0.06272513]
[1727108079009,0.3608,63566.0,63559.0,0.06272513]
[1727108079208,0.3608,63566.0,63557.0,0.06272513]
[1727108079395,0.078655,63565.0,63556.0,0.06272513]
[1727108079597,0.078655,63565.0,63554.0,0.3608]
[1727108079598,0.078655,63565.0,63557.0,0.06272513]
[1727108079792,0.001,63558.0,63557.0,0.14239013]
[1727108080196,0.079664,63558.0,63557.0,0.06372513]
[1727108080395,0.3608,63566.0,63554.0,0.3608]
[1727108080606,0.078666,63557.0,63556.0,0.001]
[1727108080907,0.078661,63561.0,63556.0,0.001]
[1727108081112,0.078665,63558.0,63556.0,0.079665]
[1727108081612,0.001,63565.0,63556.0,0.001]
[1727108081811,0.3608,63566.0,63554.0,0.3608]
[1727108081812,0.078662,63560.0,63558.0,0.078664]
[1727108083111,0.3608,63562.0,63557.0,0.001]
[1727108083310,0.078664,63558.0,63557.0,0.001]
[1727108083610,0.079664,63558.0,63556.0,0.001]
[1727108083812,0.079664,63558.0,63557.0,0.078665]
[1727108083813,0.001,63558.0,63557.0,0.078665]
[1727108084110,0.550665,63557.0,63556.0,0.001]
[1727108084417,0.078684,63542.0,63541.0,0.0037]
[1727108084598,0.078689,63538.0,63536.0,0.07869]
[1727108085502,0.439484,63542.0,63537.0,0.078689]
[1727108085902,0.439484,63542.0,63538.0,0.078688]
[1727108086211,0.078685,63541.0,63538.0,0.078688]
[1727108087209,0.3608,63542.0,63539.0,0.078687]
[1727108087413,0.3608,63542.0,63540.0,0.078686]
[1727108088011,0.078685,63541.0,63540.0,0.078686]
[1727108088209,0.078685,63541.0,63536.0,0.06272513]
[1727108088404,0.080685,63541.0,63538.0,0.001]
[1727108088606,0.078687,63539.0,63538.0,0.001]
[1727108090003,0.002,63541.0,63538.0,0.001]
[1727108090199,0.002,63541.0,63540.0,0.079686]
[1727108090703,0.002,63541.0,63540.0,0.869686]
[1727108090900,0.3608,63551.0,63540.0,0.69858338]
[1727108091209,0.078674,63550.0,63543.0,0.06266333]
[1727108091514,0.3608,63551.0,63542.0,0.06266333]
[1727108091716,0.002,63541.0,63540.0,0.079686]
[1727108091912,0.002,63541.0,63540.0,0.001]
[1727108091913,0.080685,63541.0,63540.0,0.001]
[1727108092296,0.15937,63541.0,63540.0,0.001]
[1727108093822,0.3608,63543.0,63538.0,0.078689]
[1727108094003,0.3608,63543.0,63534.0,0.0491]
[1727108094306,0.3608,63535.0,63534.0,0.127794]
[1727108095106,0.439492,63535.0,63534.0,0.0491]
[1727108097113,0.3608,63535.0,63534.0,0.127794]
[1727108097297,0.3608,63543.0,63542.0,0.078684]
[1727108097695,0.078684,63542.0,63539.0,0.19]
[1727108098218,0.078688,63539.0,63537.0,0.07869]
[1727108098401,0.078688,63539.0,63538.0,0.078689]
[1727108098601,0.078691,63536.0,63535.0,0.078691]
[1727108098805,0.078687,63540.0,63534.0,0.11178256]
[1727108099005,0.078684,63542.0,63537.0,0.07869]
[1727108100118,0.078684,63542.0,63539.0,0.078686]
[1727108100305,0.3608,63543.0,63535.0,0.13]
[1727108100608,0.3608,63543.0,63534.0,0.06268256]
[1727108100609,0.078692,63535.0,63534.0,0.06268256]
[1727108100813,0.078697,63531.0,63526.0,0.06268256]
[1727108101119,0.3608,63536.0,63534.0,0.078693]
[1727108101120,0.078693,63535.0,63534.0,0.078693]
[1727108101332,0.3608,63536.0,63535.0,0.078692]
[1727108101503,0.3608,63536.0,63531.0,0.06272702]
[1727108101708,0.3608,63536.0,63535.0,0.078692]
[1727108102306,0.3608,63544.0,63543.0,0.078682]
[1727108102512,0.3608,63544.0,63543.0,0.208682]
[1727108102902,0.07867,63554.0,63543.0,1.280802]
[1727108103103,0.07867,63553.0,63552.0,0.13]
[1727108103306,0.3608,63556.0,63546.0,0.06269282]
[1727108103612,0.078679,63546.0,63544.0,0.12678]
[1727108104414,0.7216,63548.0,63540.0,0.0466]
[1727108104609,0.078687,63539.0,63538.0,0.00236077]
[1727108105515,0.3608,63541.0,63540.0,0.078686]
[1727108107211,0.3608,63541.0,63540.0,0.079686]
[1727108107612,0.439485,63541.0,63540.0,0.001]
[1727108108235,1.798975,63541.0,63540.0,0.001]
[1727108108420,1.798975,63541.0,63524.0,0.06270903]
[1727108108421,0.078696,63532.0,63524.0,0.06270903]
[1727108108620,0.078706,63524.0,63523.0,0.06270903]
[1727108108831,0.078707,63523.0,63522.0,0.078708]
[1727108109022,0.439502,63527.0,63521.0,0.06362903]
[1727108109215,0.3608,63527.0,63521.0,0.14141803]
[1727108109518,0.439503,63527.0,63526.0,0.078703]
[1727108109826,0.3608,63527.0,63526.0,0.078703]
[1727108110216,0.3608,63530.0,63524.0,0.006]
[1727108110520,0.078705,63525.0,63524.0,0.006]
[1727108110711,0.15741,63525.0,63524.0,0.006]
[1727108110913,0.078715,63517.0,63515.0,0.078717]
[1727108111111,0.074715,63517.0,63516.0,0.08107751]
[1727108111511,0.074715,63517.0,63516.0,0.078716]
[1727108111716,0.078718,63514.0,63513.0,0.06270903]
[1727108111923,0.72268,63518.0,63514.0,0.078717]
[1727108112221,0.078716,63516.0,63513.0,0.06270903]
[1727108112419,0.078717,63515.0,63512.0,0.06270903]
[1727108112615,0.7226,63518.0,63510.0,0.15530903]
[1727108112823,0.078719,63514.0,63510.0,0.15530903]
[1727108113130,0.078719,63514.0,63511.0,0.13]
[1727108113312,0.7166,63518.0,63510.0,0.15530903]
[1727108113625,0.07872,63513.0,63512.0,0.014]
[1727108113813,0.7166,63518.0,63512.0,0.014]
[1727108114014,0.7156,63518.0,63517.0,0.078715]
[1727108115023,0.794313,63518.0,63517.0,0.078715]
[1727108115216,0.794313,63518.0,63516.0,0.19270903]
[1727108115217,0.078715,63517.0,63516.0,0.13]
[1727108115420,0.078717,63515.0,63513.0,0.14142803]
[1727108115620,0.078717,63515.0,63511.0,0.144]
[1727108115621,0.7156,63518.0,63511.0,0.07670903]
[1727108115920,0.7176,63518.0,63517.0,0.008]
[1727108116223,0.795313,63518.0,63517.0,0.008]
[1727108116622,0.795313,63518.0,63510.0,0.0926]
[1727108116623,0.078722,63511.0,63510.0,0.0926]
[1727108116932,0.078727,63507.0,63506.0,0.06270903]
[1727108117225,0.07873,63505.0,63503.0,0.00236194]
[1727108117424,0.078734,63501.0,63494.0,0.14145203]
[1727108117740,0.078747,63491.0,63490.0,0.06270903]
[1727108117931,0.078747,63491.0,63488.0,0.06270903]
[1727108117932,0.078749,63489.0,63488.0,0.06270903]
[1727108118110,0.078749,63489.0,63485.0,0.0196905]
[1727108118111,0.078753,63486.0,63485.0,0.0196905]
[1727108118432,0.3608,63491.0,63485.0,0.0196905]
[1727108118433,0.439547,63491.0,63485.0,0.0196905]
[1727108118721,0.3608,63491.0,63488.0,0.078749]
[1727108118925,0.3608,63491.0,63485.0,0.0196905]
[1727108118926,0.078751,63488.0,63485.0,0.0196905]
[1727108119428,0.3608,63491.0,63486.0,0.13]
[1727108119728,0.3608,63491.0,63489.0,0.078749]
[1727108120529,0.3608,63491.0,63485.0,0.0196905]
[1727108120823,0.439547,63491.0,63486.0,0.078753]
[1727108121025,0.3608,63491.0,63482.0,0.124658]
[1727108121337,0.3608,63491.0,63477.0,0.0494]
[1727108121338,0.3608,63483.0,63477.0,0.078764]
[1727108121515,0.078758,63482.0,63478.0,0.078763]
[1727108121926,0.3608,63483.0,63473.0,0.0966]
[1727108122523,0.3608,63483.0,63472.0,0.00236326]
[1727108122922,0.001,63482.0,63472.0,0.00236326]
[1727108123132,0.078763,63478.0,63472.0,0.08113326]
[1727108123334,0.3608,63473.0,63466.0,0.0966]
[1727108123517,0.30563166,63473.0,63466.0,0.0966]
[1727108123714,0.078772,63471.0,63465.0,0.19]
[1727108123928,0.3608,63474.0,63463.0,0.07878]
[1727108124125,0.3608,63474.0,63465.0,0.19]
[1727108124623,0.078774,63470.0,63468.0,0.078775]
[1727108124819,0.3608,63474.0,63468.0,0.078774]
[1727108125526,0.078762,63479.0,63474.0,0.078768]
[1727108125835,0.047,63481.0,63471.0,0.19]
[1727108125836,0.078767,63475.0,63471.0,0.19]
[1727108126034,0.001,63473.0,63472.0,0.07877]
[1727108127439,0.078776,63468.0,63463.0,0.078782]
[1727108127738,0.439577,63467.0,63464.0,0.07878]
[1727108127920,0.3608,63467.0,63461.0,0.3608]
[1727108128119,0.001,63473.0,63464.0,0.19]
[1727108128336,0.3645,63483.0,63473.0,0.078768]
[1727108128337,0.078764,63478.0,63473.0,0.078768]
[1727108128537,0.3608,63483.0,63468.0,0.078774]
[1727108128538,0.078771,63472.0,63468.0,0.078774]
[1727108129027,0.439565,63477.0,63470.0,0.19]
[1727108129229,0.439565,63477.0,63461.0,0.3608]
[1727108129230,0.001,63473.0,63465.0,0.19]
[1727108129934,0.001,63473.0,63461.0,0.3608]
[1727108129935,0.3608,63477.0,63467.0,0.078776]
[1727108130431,0.3608,63471.0,63462.0,0.078783]
[1727108130631,0.19,63467.0,63461.0,0.3608]
[1727108130820,0.19,63462.0,63449.0,0.0037]
[1727108131022,0.078782,63463.0,63460.0,0.078784]
[1727108131326,0.078782,63463.0,63461.0,0.078784]
[1727108131520,0.3608,63465.0,63451.0,0.127396]
[1727108131720,0.3608,63465.0,63451.0,0.0486]
[1727108132527,0.3608,63453.0,63452.0,0.078795]
[1727108132724,0.31349618,63453.0,63452.0,0.078795]
[1727108133325,0.39229018,63453.0,63448.0,0.0788]
[1727108133937,0.39229018,63453.0,63447.0,0.0494]
[1727108134124,0.31349618,63453.0,63452.0,0.078795]
[1727108134629,0.31449618,63453.0,63452.0,0.078795]
[1727108134831,0.3608,63465.0,63452.0,0.19]
[1727108135033,0.00236509,63466.0,63459.0,0.5508]
[1727108135238,0.00236509,63466.0,63460.0,0.0454]
[1727108135728,0.00236509,63466.0,63464.0,0.07878]
[1727108135932,0.00236509,63466.0,63461.0,0.078783]
[1727108136130,0.00236509,63466.0,63462.0,0.078782]
[1727108136730,0.00336509,63466.0,63463.0,0.078781]
[1727108136934,0.00336509,63466.0,63460.0,0.124185]
[1727108137137,0.078781,63464.0,63460.0,0.0454]
[1727108137324,0.078783,63463.0,63459.0,0.3608]
[1727108137525,0.078783,63462.0,63461.0,0.078784]
[1727108138333,0.078783,63462.0,63459.0,0.3608]
[1727108138334,0.078785,63460.0,63459.0,0.3608]
[1727108138539,0.07879,63456.0,63450.0,0.0464]
[1727108138856,0.078789,63457.0,63453.0,0.078793]
[1727108139034,0.078792,63455.0,63450.0,0.0464]
[1727108139229,0.268783,63462.0,63450.0,0.0464]
[1727108139230,0.19,63462.0,63450.0,0.0464]
[1727108139536,0.078786,63460.0,63450.0,0.0464]
[1727108139737,0.078791,63456.0,63454.0,0.078792]
[1727108140238,0.19,63464.0,63456.0,0.07879]
[1727108140837,0.078782,63463.0,63456.0,0.07879]
[1727108141027,0.078789,63457.0,63456.0,0.07879]
[1727108141728,0.3608,63465.0,63455.0,0.19]
[1727108141931,0.08114309,63466.0,63457.0,0.19]
[1727108142140,0.00878,63463.0,63457.0,0.19]
[1727108142323,0.00878,63463.0,63462.0,0.078783]
[1727108142929,0.00878,63463.0,63457.0,0.078789]
[1727108143327,0.00878,63463.0,63450.0,0.10910903]
[1727108143328,0.07879,63456.0,63454.0,0.078793]
[1727108143540,0.078787,63459.0,63454.0,0.078793]
[1727108143541,0.078792,63455.0,63454.0,0.078793]
[1727108143733,0.078792,63455.0,63450.0,0.4072]
[1727108143734,0.3608,63458.0,63450.0,0.125197]
[1727108143931,0.3608,63458.0,63442.0,0.06270903]
[1727108143932,0.3608,63451.0,63442.0,0.06270903]
[1727108144130,0.078815,63436.0,63435.0,0.14152503]
[1727108144443,0.13,63438.0,63431.0,0.46860903]
[1727108144628,0.4908,63438.0,63430.0,0.00236479]
[1727108144827,0.07882,63432.0,63430.0,0.00236479]
[1727108145227,0.13,63434.0,63427.0,0.06350903]
[1727108145441,0.078822,63431.0,63428.0,0.06270903]
[1727108145641,0.13,63434.0,63430.0,0.078822]
[1727108145935,0.3608,63438.0,63433.0,0.13]
[1727108146130,0.3608,63438.0,63437.0,0.078814]
[1727108146940,0.078804,63445.0,63442.0,0.078807]
[1727108147246,0.0496,63451.0,63436.0,0.19]
[1727108147247,0.078802,63447.0,63444.0,0.078805]
[1727108147427,0.439596,63452.0,63444.0,0.06270903]
[1727108147630,0.3608,63452.0,63445.0,0.14151303]
[1727108147835,0.3608,63459.0,63451.0,0.078797]
[1727108148040,0.078789,63458.0,63453.0,0.19]
[1727108148236,0.3608,63459.0,63455.0,0.078791]
[1727108148431,0.3608,63459.0,63456.0,0.07879]
[1727108148739,0.078787,63459.0,63456.0,0.07879]
[1727108148934,0.00878,63463.0,63454.0,0.06265092]
[1727108149236,0.078786,63460.0,63454.0,0.06265092]
[1727108149441,0.00878,63463.0,63455.0,0.06265092]
[1727108149741,0.078788,63459.0,63455.0,0.14144192]
[1727108149936,0.078788,63459.0,63455.0,0.06265092]
[1727108150234,0.013,63459.0,63455.0,0.06265092]
[1727108150438,0.078788,63458.0,63455.0,0.06265092]
[1727108150641,0.013,63459.0,63454.0,0.06265092]
[1727108150839,0.078791,63456.0,63454.0,0.06265092]
[1727108151145,0.3608,63458.0,63454.0,0.06265092]
[1727108151349,0.013,63459.0,63458.0,0.078788]
[1727108151540,0.013,63459.0,63458.0,0.14143892]
[1727108151742,0.00878,63463.0,63462.0,0.078783]
[1727108152236,0.00878,63463.0,63459.0,0.06272726]
[1727108152443,0.00878,63463.0,63459.0,0.06274902]
[1727108152630,0.157574,63459.0,63458.0,0.001]
[1727108152829,0.347574,63459.0,63458.0,0.001]